[Event "Late-Titled-Tuesday-Blitz-September-19-2023"]
[Site "Chess.com"]
[Date "2023.09.19"]
[Round "1"]
[White "angryspacevoid"]
[Black "Angry_Twin"]
[Result "0-1"]
[WhiteElo "2495"]
[BlackElo "2943"]
[TimeControl "180+1"]
[EndTime "14:06:47 PDT"]
[Termination "Angry_Twin won by resignation"]

1. e4 {[%clk 0:03:00.9]} 1... c5 {[%clk 0:02:59.9]} 2. Nf3 {[%clk 0:02:59.5]}
2... d6 {[%clk 0:02:59.3]} 3. d4 {[%clk 0:02:59.8]} 3... cxd4 {[%clk 0:03:00.2]}
4. Nxd4 {[%clk 0:02:59.9]} 4... Nf6 {[%clk 0:03:00.9]} 5. Nc3 {[%clk 0:03:00.5]}
5... a6 {[%clk 0:03:01.5]} 6. Bg5 {[%clk 0:02:57.9]} 6... e6 {[%clk 0:03:01.3]}
7. f4 {[%clk 0:02:57.5]} 7... h6 {[%clk 0:03:01.4]} 8. Bh4 {[%clk 0:02:49]} 8...
Nbd7 {[%clk 0:03:01.2]} 9. Qf3 {[%clk 0:02:48.2]} 9... e5 {[%clk 0:03:01.5]} 10.
Nb3 {[%clk 0:02:45.8]} 10... exf4 {[%clk 0:02:58.7]} 11. O-O-O {[%clk
0:02:40.3]} 11... g5 {[%clk 0:02:58.3]} 12. Bf2 {[%clk 0:02:38.5]} 12... Ne5
{[%clk 0:02:58.6]} 13. Qe2 {[%clk 0:02:35.1]} 13... Bg4 {[%clk 0:02:59.3]} 14.
Qd2 {[%clk 0:02:35.4]} 14... Bxd1 {[%clk 0:02:59.4]} 15. Qxd1 {[%clk 0:02:36.3]}
15... Bg7 {[%clk 0:02:58.2]} 16. Nd4 {[%clk 0:02:36.3]} 16... Nfg4 {[%clk
0:02:51.4]} 17. Bg1 {[%clk 0:02:35.5]} 17... Ne3 {[%clk 0:02:44.1]} 18. Bxe3
{[%clk 0:02:33.8]} 18... fxe3 {[%clk 0:02:45]} 19. Nf5 {[%clk 0:02:34.4]} 19...
O-O {[%clk 0:02:45.7]} 20. h4 {[%clk 0:02:30.4]} 20... g4 {[%clk 0:02:45.5]} 21.
h5 {[%clk 0:02:02.3]} 21... Qg5 {[%clk 0:02:43.9]} 22. Kb1 {[%clk 0:02:00]}
22... Nc6 {[%clk 0:02:16.1]} 23. Nd5 {[%clk 0:01:57.8]} 23... Rae8 {[%clk
0:02:15]} 24. Bd3 {[%clk 0:01:42.2]} 24... Nd4 {[%clk 0:02:06]} 25. Nfxe3 {[%clk
0:01:29.1]} 25... f5 {[%clk 0:01:46.9]} 26. c3 {[%clk 0:01:18.8]} 26... fxe4
{[%clk 0:01:43.9]} 27. Bc4 {[%clk 0:01:05.4]} 27... b5 {[%clk 0:00:38.2]} 28.
Nf6+ {[%clk 0:00:44.3]} 28... Kh8 {[%clk 0:00:37.7]} 29. Nxe8 {[%clk 0:00:44.9]}
29... Rxe8 {[%clk 0:00:37.8]} 30. Re1 {[%clk 0:00:15.7]} 30... bxc4 {[%clk
0:00:36.8]} 31. cxd4 {[%clk 0:00:15.5]} 31... d5 {[%clk 0:00:37.4]} 32. Qa4
{[%clk 0:00:15.2]} 32... Rb8 {[%clk 0:00:34.3]} 33. Qc6 {[%clk 0:00:08.3]} 33...
Bxd4 {[%clk 0:00:33.1]} 34. Nxd5 {[%clk 0:00:07.5]} 34... Rxb2+ {[%clk 0:00:33]}
0-1

[Event "Late-Titled-Tuesday-Blitz-September-19-2023"]
[Site "Chess.com"]
[Date "2023.09.19"]
[Round "1"]
[White "szachmistrz2500"]
[Black "Zkid"]
[Result "0-1"]
[WhiteElo "2499"]
[BlackElo "2955"]
[TimeControl "180+1"]
[EndTime "14:06:50 PDT"]
[Termination "Zkid won by resignation"]

1. Nf3 {[%clk 0:03:00.9]} 1... d5 {[%clk 0:02:59]} 2. g3 {[%clk 0:03:00.7]} 2...
Nf6 {[%clk 0:02:55.2]} 3. Bg2 {[%clk 0:03:01.6]} 3... c6 {[%clk 0:02:55.3]} 4.
O-O {[%clk 0:03:02]} 4... Bg4 {[%clk 0:02:55.9]} 5. d3 {[%clk 0:03:02.9]} 5...
Nbd7 {[%clk 0:02:55.6]} 6. Nbd2 {[%clk 0:03:03]} 6... e5 {[%clk 0:02:55.9]} 7.
e4 {[%clk 0:03:02]} 7... dxe4 {[%clk 0:02:56.8]} 8. dxe4 {[%clk 0:03:01.9]} 8...
h6 {[%clk 0:02:56.4]} 9. h3 {[%clk 0:03:02]} 9... Be6 {[%clk 0:02:56.1]} 10. Qe2
{[%clk 0:03:01.4]} 10... Bc5 {[%clk 0:02:50.9]} 11. Nc4 {[%clk 0:03:01.1]} 11...
Qc7 {[%clk 0:02:48.7]} 12. a4 {[%clk 0:03:00.7]} 12... O-O {[%clk 0:02:46.8]}
13. b3 {[%clk 0:03:01]} 13... a5 {[%clk 0:02:42.1]} 14. Bb2 {[%clk 0:03:00.9]}
14... Bxc4 {[%clk 0:02:37.2]} 15. Qxc4 {[%clk 0:03:00.2]} 15... Rfe8 {[%clk
0:02:31.4]} 16. Rad1 {[%clk 0:02:56.5]} 16... Rab8 {[%clk 0:02:25.6]} 17. Nh4
{[%clk 0:02:26.9]} 17... b5 {[%clk 0:02:22.5]} 18. axb5 {[%clk 0:02:25.6]} 18...
cxb5 {[%clk 0:02:23.4]} 19. Qe2 {[%clk 0:02:25.9]} 19... a4 {[%clk 0:02:15.8]}
20. Ra1 {[%clk 0:02:23.4]} 20... Qa7 {[%clk 0:01:47.3]} 21. c4 {[%clk
0:02:00.4]} 21... a3 {[%clk 0:01:39.8]} 22. cxb5 {[%clk 0:01:56.1]} 22... Ra8
{[%clk 0:01:38.9]} 23. Bc3 {[%clk 0:01:51.5]} 23... Rec8 {[%clk 0:01:08.4]} 24.
Rfc1 {[%clk 0:01:36.9]} 24... Qb6 {[%clk 0:01:03.5]} 25. Nf5 {[%clk 0:01:31.4]}
25... Bf8 {[%clk 0:00:58.8]} 26. Bf1 {[%clk 0:01:27.1]} 26... g6 {[%clk
0:00:52.2]} 27. Nh4 {[%clk 0:01:19.5]} 27... Bc5 {[%clk 0:00:41.9]} 28. Nf3
{[%clk 0:01:13.4]} 28... Bxf2+ {[%clk 0:00:37.8]} 29. Kg2 {[%clk 0:01:06]} 29...
Bd4 {[%clk 0:00:30.2]} 30. Bxd4 {[%clk 0:00:50.3]} 30... exd4 {[%clk 0:00:31.1]}
31. e5 {[%clk 0:00:50.7]} 31... Re8 {[%clk 0:00:30.5]} 32. Qc4 {[%clk
0:00:49.1]} 32... Nxe5 {[%clk 0:00:28.3]} 33. Qxd4 {[%clk 0:00:39.9]} 33... Qb7
{[%clk 0:00:28.3]} 34. Be2 {[%clk 0:00:40.2]} 34... Nxf3 {[%clk 0:00:25.3]} 35.
Bxf3 {[%clk 0:00:38.9]} 35... Re2+ {[%clk 0:00:25.3]} 36. Qf2 {[%clk 0:00:35.9]}
36... Rxf2+ {[%clk 0:00:24.9]} 37. Kxf2 {[%clk 0:00:36.3]} 37... Qb6+ {[%clk
0:00:24.1]} 38. Kg2 {[%clk 0:00:36.6]} 38... Rd8 {[%clk 0:00:23.2]} 39. Rc2
{[%clk 0:00:34.8]} 39... Qe3 {[%clk 0:00:21.1]} 40. Rxa3 {[%clk 0:00:33.2]}
40... Rd2+ {[%clk 0:00:20.6]} 41. Rxd2 {[%clk 0:00:32.6]} 41... Qxd2+ {[%clk
0:00:21.5]} 42. Kf1 {[%clk 0:00:32.9]} 42... Qc1+ {[%clk 0:00:22]} 0-1

[Event "Late-Titled-Tuesday-Blitz-September-19-2023"]
[Site "Chess.com"]
[Date "2023.09.19"]
[Round "1"]
[White "JoakimVonAnd"]
[Black "Lion_DL"]
[Result "0-1"]
[WhiteElo "2710"]
[BlackElo "2449"]
[TimeControl "180+1"]
[EndTime "14:06:50 PDT"]
[Termination "Lion_DL won by checkmate"]

1. Nf3 {[%clk 0:02:58.4]} 1... Nf6 {[%clk 0:02:59.6]} 2. b3 {[%clk 0:02:58.3]}
2... g6 {[%clk 0:02:55.4]} 3. Bb2 {[%clk 0:02:58.5]} 3... Bg7 {[%clk 0:02:56.2]}
4. e3 {[%clk 0:02:58.6]} 4... d6 {[%clk 0:02:56.6]} 5. c4 {[%clk 0:02:58.7]}
5... Nbd7 {[%clk 0:02:56.1]} 6. d4 {[%clk 0:02:55.8]} 6... c5 {[%clk 0:02:55.6]}
7. d5 {[%clk 0:02:54.9]} 7... O-O {[%clk 0:02:53.1]} 8. Be2 {[%clk 0:02:54.4]}
8... Qc7 {[%clk 0:02:41.4]} 9. O-O {[%clk 0:02:54]} 9... e6 {[%clk 0:02:39]} 10.
Nc3 {[%clk 0:02:48.9]} 10... exd5 {[%clk 0:02:37.6]} 11. Nxd5 {[%clk 0:02:48.9]}
11... Nxd5 {[%clk 0:02:38]} 12. Bxg7 {[%clk 0:02:49.8]} 12... Nxe3 {[%clk
0:02:28.1]} 13. fxe3 {[%clk 0:02:48.6]} 13... Kxg7 {[%clk 0:02:28.6]} 14. Qd2
{[%clk 0:02:47.6]} 14... Nf6 {[%clk 0:02:20.6]} 15. Qc3 {[%clk 0:02:44.6]} 15...
Qe7 {[%clk 0:02:12.5]} 16. Nd2 {[%clk 0:02:29.1]} 16... Re8 {[%clk 0:02:00.1]}
17. Rf3 {[%clk 0:02:18.8]} 17... Qe5 {[%clk 0:01:58.3]} 18. Qxe5 {[%clk
0:02:07.7]} 18... Rxe5 {[%clk 0:01:59.2]} 19. Raf1 {[%clk 0:01:54]} 19... Bf5
{[%clk 0:01:49.4]} 20. Bd3 {[%clk 0:01:44.3]} 20... Bxd3 {[%clk 0:01:45.9]} 21.
Rxf6 {[%clk 0:01:44.2]} 21... Bxf1 {[%clk 0:01:45.8]} 22. Rxf1 {[%clk
0:01:45.1]} 22... Rxe3 {[%clk 0:01:45.5]} 23. Nf3 {[%clk 0:01:45.3]} 23... Rd3
{[%clk 0:01:38.9]} 24. Re1 {[%clk 0:01:44.9]} 24... d5 {[%clk 0:01:37.7]} 25.
Re7 {[%clk 0:01:41.8]} 25... dxc4 {[%clk 0:01:35.7]} 26. bxc4 {[%clk 0:01:41.8]}
26... Kf6 {[%clk 0:01:29.3]} 27. Rxb7 {[%clk 0:01:41.7]} 27... Rc3 {[%clk
0:01:25.5]} 28. h4 {[%clk 0:01:40.9]} 28... Rxc4 {[%clk 0:01:25.1]} 29. Rc7
{[%clk 0:01:34.5]} 29... a5 {[%clk 0:01:21.7]} 30. Ng5 {[%clk 0:01:34.2]} 30...
Rxh4 {[%clk 0:01:21.4]} 31. Nxf7 {[%clk 0:01:33.3]} 31... Rb8 {[%clk 0:01:13.2]}
32. Nd6 {[%clk 0:01:31.4]} 32... Rd4 {[%clk 0:01:07.6]} 33. Nb7 {[%clk
0:01:26.8]} 33... c4 {[%clk 0:01:03.9]} 34. Nxa5 {[%clk 0:01:24.6]} 34... Rb1+
{[%clk 0:01:03.4]} 35. Kh2 {[%clk 0:01:24.3]} 35... Rb2 {[%clk 0:01:01.4]} 36.
Rc6+ {[%clk 0:01:19.8]} 36... Kg7 {[%clk 0:01:00.7]} 37. Nxc4 {[%clk 0:01:16.9]}
37... Rc2 {[%clk 0:01:00.8]} 38. Ne5 {[%clk 0:01:17.4]} 38... Rxc6 {[%clk
0:01:00.7]} 39. Nxc6 {[%clk 0:01:18.3]} 39... Ra4 {[%clk 0:01:00.8]} 40. Ne5
{[%clk 0:01:18.8]} 40... Rxa2 {[%clk 0:01:01]} 41. Nf3 {[%clk 0:01:19.5]} 41...
Kh6 {[%clk 0:01:00.5]} 42. Ne5 {[%clk 0:01:19.6]} 42... Kh5 {[%clk 0:01:00.5]}
43. Nf3 {[%clk 0:01:19.9]} 43... g5 {[%clk 0:01:00.4]} 44. Kg3 {[%clk
0:01:20.5]} 44... h6 {[%clk 0:01:00.8]} 45. Ne5 {[%clk 0:01:20.6]} 45... Ra3+
{[%clk 0:01:00.7]} 46. Kh2 {[%clk 0:01:21.2]} 46... g4 {[%clk 0:00:58.2]} 47.
Nc4 {[%clk 0:01:19.6]} 47... Rc3 {[%clk 0:00:57.7]} 48. Ne5 {[%clk 0:01:19.9]}
48... Kg5 {[%clk 0:00:57.5]} 49. Nd7 {[%clk 0:01:15.6]} 49... h5 {[%clk
0:00:55.4]} 50. Ne5 {[%clk 0:01:15.6]} 50... h4 {[%clk 0:00:54.3]} 51. Nf7+
{[%clk 0:01:14.4]} 51... Kf4 {[%clk 0:00:54.1]} 52. Nd6 {[%clk 0:01:13.7]} 52...
Rc2 {[%clk 0:00:52.8]} 53. Nb5 {[%clk 0:01:11.9]} 53... h3 {[%clk 0:00:52.5]}
54. Nd4 {[%clk 0:01:11.9]} 54... Rxg2+ {[%clk 0:00:51.8]} 55. Kh1 {[%clk
0:01:12.8]} 55... Rd2 {[%clk 0:00:50.8]} 56. Nb3 {[%clk 0:01:11.3]} 56... Rb2
{[%clk 0:00:50.9]} 57. Nc5 {[%clk 0:01:11.2]} 57... Kg3 {[%clk 0:00:50.3]} 58.
Ne4+ {[%clk 0:01:09.6]} 58... Kf4 {[%clk 0:00:49.6]} 59. Nc3 {[%clk 0:01:08]}
59... g3 {[%clk 0:00:48.6]} 60. Kg1 {[%clk 0:01:05.1]} 60... Rc2 {[%clk
0:00:46.1]} 61. Nd5+ {[%clk 0:01:00.5]} 61... Kf3 {[%clk 0:00:46.5]} 62. Ne3
{[%clk 0:00:57.3]} 62... Rc1+ {[%clk 0:00:45.1]} 63. Nf1 {[%clk 0:00:57]} 63...
h2+ {[%clk 0:00:45.8]} 64. Kh1 {[%clk 0:00:57.3]} 64... Rxf1# {[%clk 0:00:46.6]}
0-1

[Event "Late-Titled-Tuesday-Blitz-September-19-2023"]
[Site "Chess.com"]
[Date "2023.09.19"]
[Round "1"]
[White "AndreiITrifan"]
[Black "SergioMoralesG"]
[Result "1/2-1/2"]
[WhiteElo "2676"]
[BlackElo "2416"]
[TimeControl "180+1"]
[EndTime "14:06:52 PDT"]
[Termination "Game drawn by repetition"]

1. Nf3 {[%clk 0:03:00]} 1... d5 {[%clk 0:02:49.9]} 2. e3 {[%clk 0:02:59.9]} 2...
Nf6 {[%clk 0:02:48.6]} 3. c4 {[%clk 0:03:00]} 3... c6 {[%clk 0:02:47.8]} 4. Nc3
{[%clk 0:02:57.6]} 4... g6 {[%clk 0:02:47.5]} 5. b3 {[%clk 0:02:50]} 5... Bg7
{[%clk 0:02:47.8]} 6. Bb2 {[%clk 0:02:50.9]} 6... O-O {[%clk 0:02:48.2]} 7. Be2
{[%clk 0:02:49]} 7... Re8 {[%clk 0:02:48.4]} 8. d4 {[%clk 0:02:48.9]} 8... Bf5
{[%clk 0:02:48.1]} 9. O-O {[%clk 0:02:46.8]} 9... Ne4 {[%clk 0:02:48.1]} 10. Bd3
{[%clk 0:02:40.8]} 10... Nxc3 {[%clk 0:02:45.8]} 11. Bxc3 {[%clk 0:02:41.7]}
11... Bxd3 {[%clk 0:02:46]} 12. Qxd3 {[%clk 0:02:42.6]} 12... Nd7 {[%clk
0:02:46.4]} 13. Rfd1 {[%clk 0:02:34.6]} 13... Nf6 {[%clk 0:02:42.7]} 14. Nd2
{[%clk 0:02:22.5]} 14... a5 {[%clk 0:02:39.8]} 15. a3 {[%clk 0:02:21.5]} 15...
Qd7 {[%clk 0:02:35.9]} 16. h3 {[%clk 0:02:20.8]} 16... Red8 {[%clk 0:02:26.4]}
17. Rdb1 {[%clk 0:02:09.8]} 17... e6 {[%clk 0:02:22.6]} 18. Re1 {[%clk
0:02:08.2]} 18... b5 {[%clk 0:02:08]} 19. Qc2 {[%clk 0:02:05.7]} 19... a4 {[%clk
0:02:03.8]} 20. Qb2 {[%clk 0:01:57.1]} 20... axb3 {[%clk 0:01:59.4]} 21. cxb5
{[%clk 0:01:56.4]} 21... cxb5 {[%clk 0:01:58.1]} 22. Nxb3 {[%clk 0:01:55.4]}
22... Qc6 {[%clk 0:01:49.7]} 23. Bb4 {[%clk 0:01:54.2]} 23... Nd7 {[%clk
0:01:47.5]} 24. Rec1 {[%clk 0:01:51.2]} 24... Qb7 {[%clk 0:01:45.2]} 25. Nc5
{[%clk 0:01:48.9]} 25... Nxc5 {[%clk 0:01:45]} 26. Bxc5 {[%clk 0:01:49.8]} 26...
Bf8 {[%clk 0:01:37.7]} 27. Rab1 {[%clk 0:01:47.6]} 27... Bxc5 {[%clk 0:01:31.6]}
28. Rxc5 {[%clk 0:01:48.5]} 28... Qa6 {[%clk 0:01:27.8]} 29. Rxb5 {[%clk
0:01:39.3]} 29... Qxa3 {[%clk 0:01:26.4]} 30. Qxa3 {[%clk 0:01:39]} 30... Rxa3
{[%clk 0:01:27.3]} 31. Rb8 {[%clk 0:01:39.5]} 31... Rxb8 {[%clk 0:01:26.9]} 32.
Rxb8+ {[%clk 0:01:40.4]} 32... Kg7 {[%clk 0:01:27.5]} 33. g3 {[%clk 0:01:40.5]}
33... h5 {[%clk 0:01:25.3]} 34. h4 {[%clk 0:01:40.3]} 34... Ra2 {[%clk
0:01:25.6]} 35. Kg2 {[%clk 0:01:39.9]} 35... Kf6 {[%clk 0:01:25.8]} 36. Rb7
{[%clk 0:01:37.4]} 36... Kg7 {[%clk 0:01:26]} 37. Kf3 {[%clk 0:01:37.5]} 37...
Kf6 {[%clk 0:01:26.4]} 38. Rc7 {[%clk 0:01:37.2]} 38... Kg7 {[%clk 0:01:26.7]}
39. Rc6 {[%clk 0:01:37.7]} 39... Kf6 {[%clk 0:01:26.9]} 40. Rc5 {[%clk
0:01:38.2]} 40... Kg7 {[%clk 0:01:27]} 41. Rc1 {[%clk 0:01:37.8]} 41... Kf6
{[%clk 0:01:26.6]} 42. Rg1 {[%clk 0:01:37.6]} 42... Kg7 {[%clk 0:01:26.8]} 43.
Rg2 {[%clk 0:01:36]} 43... Kf6 {[%clk 0:01:27]} 44. Rg1 {[%clk 0:01:35.7]} 44...
Kg7 {[%clk 0:01:26.7]} 45. Rb1 {[%clk 0:01:35.9]} 45... Kf6 {[%clk 0:01:26.9]}
46. Kg2 {[%clk 0:01:35.8]} 46... Kg7 {[%clk 0:01:27.2]} 47. Rb5 {[%clk 0:01:32]}
47... Kf6 {[%clk 0:01:27]} 48. Rb3 {[%clk 0:01:30.5]} 48... Kg7 {[%clk
0:01:26.8]} 49. Rc3 {[%clk 0:01:28.6]} 49... Kf6 {[%clk 0:01:27.1]} 50. Rc8
{[%clk 0:01:28.1]} 50... Kg7 {[%clk 0:01:27.3]} 51. Rd8 {[%clk 0:01:28.1]} 51...
Kf6 {[%clk 0:01:27.6]} 52. Rg8 {[%clk 0:01:28.3]} 52... Rb2 {[%clk 0:01:26.3]}
53. Kf3 {[%clk 0:01:26.5]} 53... Ra2 {[%clk 0:01:26.2]} 54. Rc8 {[%clk
0:01:17.8]} 54... Kg7 {[%clk 0:01:25.5]} 55. Rc1 {[%clk 0:01:18]} 55... Kf6
{[%clk 0:01:25.4]} 56. Re1 {[%clk 0:01:14.5]} 56... Kg7 {[%clk 0:01:25.8]} 57.
Rg1 {[%clk 0:01:09.3]} 57... Kf6 {[%clk 0:01:25.3]} 58. Rg2 {[%clk 0:01:01.2]}
58... Kg7 {[%clk 0:01:24.5]} 59. Rg1 {[%clk 0:01:00.8]} 59... Kf6 {[%clk
0:01:24.9]} 60. Rb1 {[%clk 0:00:59.8]} 60... Kg7 {[%clk 0:01:24.8]} 61. Rf1
{[%clk 0:00:54.8]} 61... Kf6 {[%clk 0:01:24.6]} 62. Kf4 {[%clk 0:00:55.1]} 62...
Rb2 {[%clk 0:01:22.7]} 63. Kf3 {[%clk 0:00:48.7]} 63... Ra2 {[%clk 0:01:22.5]}
64. Kf4 {[%clk 0:00:44.1]} 64... Rb2 {[%clk 0:01:21.6]} 65. Kf3 {[%clk
0:00:35.7]} 65... Ra2 {[%clk 0:01:21.2]} 1/2-1/2

[Event "Late-Titled-Tuesday-Blitz-September-19-2023"]
[Site "Chess.com"]
[Date "2023.09.19"]
[Round "1"]
[White "Inepton_Fermion"]
[Black "jk13"]
[Result "0-1"]
[WhiteElo "2375"]
[BlackElo "2653"]
[TimeControl "180+1"]
[EndTime "14:06:52 PDT"]
[Termination "jk13 won on time"]

1. Nf3 {[%clk 0:02:59]} 1... d5 {[%clk 0:02:59.8]} 2. b3 {[%clk 0:02:59.5]} 2...
Nf6 {[%clk 0:02:59]} 3. Bb2 {[%clk 0:03:00]} 3... e6 {[%clk 0:02:59.7]} 4. e3
{[%clk 0:02:59.4]} 4... Bd6 {[%clk 0:02:58.4]} 5. c4 {[%clk 0:02:59.4]} 5... O-O
{[%clk 0:02:58.9]} 6. Nc3 {[%clk 0:02:56.5]} 6... c6 {[%clk 0:02:58.4]} 7. d4
{[%clk 0:02:55]} 7... Nbd7 {[%clk 0:02:54.8]} 8. Bd3 {[%clk 0:02:55]} 8... Re8
{[%clk 0:02:47.4]} 9. O-O {[%clk 0:02:52.6]} 9... dxc4 {[%clk 0:02:47.7]} 10.
bxc4 {[%clk 0:02:33.3]} 10... e5 {[%clk 0:02:48]} 11. Qc2 {[%clk 0:02:32.3]}
11... Qe7 {[%clk 0:02:44.4]} 12. Ng5 {[%clk 0:02:10.2]} 12... h6 {[%clk
0:02:40.6]} 13. Nge4 {[%clk 0:02:10.3]} 13... Bc7 {[%clk 0:02:31.6]} 14. Rfe1
{[%clk 0:01:54.5]} 14... Ba5 {[%clk 0:02:28.8]} 15. Re2 {[%clk 0:01:31.6]} 15...
Nxe4 {[%clk 0:01:49]} 16. Nxe4 {[%clk 0:01:13.2]} 16... Qf8 {[%clk 0:01:24.1]}
17. c5 {[%clk 0:01:03.6]} 17... Bc7 {[%clk 0:01:17.7]} 18. Bc4 {[%clk
0:00:45.1]} 18... Kh8 {[%clk 0:01:13.7]} 19. Rd1 {[%clk 0:00:25]} 19... f5
{[%clk 0:01:10.8]} 20. Nd6 {[%clk 0:00:24.3]} 20... Bxd6 {[%clk 0:01:09.5]} 21.
cxd6 {[%clk 0:00:25.2]} 21... e4 {[%clk 0:01:06]} 22. Ba3 {[%clk 0:00:19.7]}
22... Qf6 {[%clk 0:01:01.2]} 23. Qb3 {[%clk 0:00:11.8]} 23... Nb6 {[%clk
0:00:58.1]} 24. Bf7 {[%clk 0:00:09.9]} 24... Rd8 {[%clk 0:00:47.7]} 25. Red2
{[%clk 0:00:03.6]} 25... Bd7 {[%clk 0:00:41.7]} 26. Bc4 {[%clk 0:00:02.7]} 26...
Nxc4 {[%clk 0:00:36.3]} 27. Qxc4 {[%clk 0:00:03.6]} 27... Be6 {[%clk 0:00:36.7]}
28. Qb4 {[%clk 0:00:03.1]} 28... b6 {[%clk 0:00:36.1]} 29. Qc3 {[%clk
0:00:02.6]} 29... Bd5 {[%clk 0:00:36.3]} 30. Qb4 {[%clk 0:00:02.2]} 30... Rd7
{[%clk 0:00:33.8]} 31. Rc1 {[%clk 0:00:02.3]} 31... Rf8 {[%clk 0:00:29.9]} 32.
g3 {[%clk 0:00:01.8]} 32... g5 {[%clk 0:00:29.7]} 33. Rdc2 {[%clk 0:00:01.3]}
33... f4 {[%clk 0:00:28]} 0-1

[Event "Late-Titled-Tuesday-Blitz-September-19-2023"]
[Site "Chess.com"]
[Date "2023.09.19"]
[Round "1"]
[White "chessdjw"]
[Black "leschebaza"]
[Result "1-0"]
[WhiteElo "2648"]
[BlackElo "2366"]
[TimeControl "180+1"]
[EndTime "14:06:55 PDT"]
[Termination "chessdjw won by resignation"]

1. e4 {[%clk 0:03:00.9]} 1... e6 {[%clk 0:02:59.9]} 2. d4 {[%clk 0:02:59.9]}
2... d5 {[%clk 0:03:00.8]} 3. Nd2 {[%clk 0:02:56.6]} 3... c5 {[%clk 0:02:59.9]}
4. exd5 {[%clk 0:02:55.6]} 4... Qxd5 {[%clk 0:03:00.8]} 5. Ngf3 {[%clk
0:02:49.8]} 5... cxd4 {[%clk 0:03:01]} 6. Bc4 {[%clk 0:02:49.2]} 6... Qd6 {[%clk
0:02:57.9]} 7. O-O {[%clk 0:02:46.9]} 7... Nc6 {[%clk 0:02:57.5]} 8. Nb3 {[%clk
0:02:45.2]} 8... Nf6 {[%clk 0:02:57.6]} 9. Nbxd4 {[%clk 0:02:42.4]} 9... Nxd4
{[%clk 0:02:58.5]} 10. Nxd4 {[%clk 0:02:42.7]} 10... Be7 {[%clk 0:02:58.6]} 11.
c3 {[%clk 0:02:34.4]} 11... O-O {[%clk 0:02:58.1]} 12. Qf3 {[%clk 0:02:31]}
12... e5 {[%clk 0:02:54.5]} 13. Nf5 {[%clk 0:02:29.8]} 13... e4 {[%clk
0:02:34.5]} 14. Nxe7+ {[%clk 0:02:16]} 14... Qxe7 {[%clk 0:02:35.4]} 15. Qe2
{[%clk 0:02:06.1]} 15... Be6 {[%clk 0:02:33.3]} 16. Bg5 {[%clk 0:02:04.3]} 16...
Rac8 {[%clk 0:02:17.4]} 17. Bxe6 {[%clk 0:02:01.9]} 17... Qxe6 {[%clk
0:02:18.3]} 18. Bxf6 {[%clk 0:02:01.3]} 18... gxf6 {[%clk 0:02:19.2]} 19. f3
{[%clk 0:01:59.2]} 19... exf3 {[%clk 0:02:16.6]} 20. Qxf3 {[%clk 0:01:59]} 20...
Rc6 {[%clk 0:02:01.5]} 21. Kh1 {[%clk 0:01:53.5]} 21... Kh8 {[%clk 0:02:00.9]}
22. Rfe1 {[%clk 0:01:48.5]} 22... Qd6 {[%clk 0:01:57.2]} 23. Rad1 {[%clk
0:01:47.3]} 23... Qc5 {[%clk 0:01:55.8]} 24. Rd5 {[%clk 0:01:43.5]} 24... Qc4
{[%clk 0:01:50.7]} 25. Rh5 {[%clk 0:01:37.3]} 25... Re6 {[%clk 0:01:25.8]} 26.
Rxe6 {[%clk 0:01:03.4]} 26... Qxe6 {[%clk 0:01:26.7]} 27. h3 {[%clk 0:00:55.9]}
27... Rg8 {[%clk 0:01:22.9]} 28. Rf5 {[%clk 0:00:45.7]} 28... Rg6 {[%clk
0:01:19.8]} 29. Rd5 {[%clk 0:00:32.7]} 29... Kg7 {[%clk 0:01:18.3]} 30. Kh2
{[%clk 0:00:31.4]} 30... b6 {[%clk 0:01:16.1]} 31. a3 {[%clk 0:00:29.6]} 31...
Qc8 {[%clk 0:01:03.9]} 32. Qf4 {[%clk 0:00:25.7]} 32... Qc6 {[%clk 0:01:02.3]}
33. c4 {[%clk 0:00:26]} 33... h6 {[%clk 0:00:59.2]} 34. b3 {[%clk 0:00:20.9]}
34... a6 {[%clk 0:00:54.7]} 35. a4 {[%clk 0:00:21]} 35... b5 {[%clk 0:00:51.4]}
36. a5 {[%clk 0:00:19.9]} 36... bxc4 {[%clk 0:00:50.7]} 37. bxc4 {[%clk
0:00:20.6]} 37... h5 {[%clk 0:00:48.8]} 38. Qf3 {[%clk 0:00:12.4]} 38... Qxc4
{[%clk 0:00:47.3]} 39. Rxh5 {[%clk 0:00:11.6]} 39... Qc7+ {[%clk 0:00:45.9]} 40.
Kh1 {[%clk 0:00:11.4]} 40... Qxa5 {[%clk 0:00:46.1]} 41. Rxa5 {[%clk 0:00:10.8]}
1-0

[Event "Late-Titled-Tuesday-Blitz-September-19-2023"]
[Site "Chess.com"]
[Date "2023.09.19"]
[Round "1"]
[White "StarkyNZ"]
[Black "Bilan_Danila"]
[Result "1-0"]
[WhiteElo "2304"]
[BlackElo "2565"]
[TimeControl "180+1"]
[EndTime "14:06:55 PDT"]
[Termination "StarkyNZ won by checkmate"]

1. c4 {[%clk 0:02:57.6]} 1... c6 {[%clk 0:02:57.4]} 2. e4 {[%clk 0:02:56.9]}
2... d5 {[%clk 0:02:58.3]} 3. cxd5 {[%clk 0:02:56.5]} 3... cxd5 {[%clk
0:02:59.2]} 4. exd5 {[%clk 0:02:57.2]} 4... Nf6 {[%clk 0:02:59.4]} 5. Bb5+
{[%clk 0:02:56.6]} 5... Bd7 {[%clk 0:02:58.5]} 6. Bc4 {[%clk 0:02:56.9]} 6... g6
{[%clk 0:02:49.7]} 7. Nc3 {[%clk 0:02:55.9]} 7... Bg7 {[%clk 0:02:49.7]} 8. Nge2
{[%clk 0:02:56.1]} 8... O-O {[%clk 0:02:45]} 9. O-O {[%clk 0:02:56.2]} 9... a6
{[%clk 0:02:39.5]} 10. a4 {[%clk 0:02:55]} 10... Qc7 {[%clk 0:01:22.9]} 11. Qb3
{[%clk 0:02:46.6]} 11... Bg4 {[%clk 0:01:13.8]} 12. h3 {[%clk 0:02:43.3]} 12...
Bc8 {[%clk 0:01:02.8]} 13. d4 {[%clk 0:02:40.5]} 13... Nbd7 {[%clk 0:00:56.4]}
14. Bf4 {[%clk 0:02:39.7]} 14... Qb6 {[%clk 0:00:49.2]} 15. a5 {[%clk
0:02:36.4]} 15... Qxb3 {[%clk 0:00:48.9]} 16. Bxb3 {[%clk 0:02:37.3]} 16... Ne8
{[%clk 0:00:48.9]} 17. Rac1 {[%clk 0:02:33.4]} 17... Ndf6 {[%clk 0:00:41.5]} 18.
Na4 {[%clk 0:02:30.3]} 18... Bf5 {[%clk 0:00:36.5]} 19. Nb6 {[%clk 0:02:27.2]}
19... Rd8 {[%clk 0:00:36.3]} 20. Ng3 {[%clk 0:02:05.3]} 20... Bd3 {[%clk
0:00:32.4]} 21. Rfe1 {[%clk 0:02:03.7]} 21... Nd7 {[%clk 0:00:05.3]} 22. Nc8
{[%clk 0:01:52.1]} 22... Bxd4 {[%clk 0:00:04.1]} 23. Nxe7+ {[%clk 0:01:46.5]}
23... Kg7 {[%clk 0:00:03.6]} 24. Red1 {[%clk 0:01:45.1]} 24... Bf6 {[%clk
0:00:03.6]} 25. Nc6 {[%clk 0:01:32.1]} 25... bxc6 {[%clk 0:00:03.6]} 26. dxc6
{[%clk 0:01:32.5]} 26... Bb5 {[%clk 0:00:02.5]} 27. cxd7 {[%clk 0:01:26.6]}
27... Rxd7 {[%clk 0:00:03.4]} 28. Rxd7 {[%clk 0:01:19]} 28... Bxd7 {[%clk
0:00:04.3]} 29. Rc2 {[%clk 0:01:12.8]} 29... Bb5 {[%clk 0:00:03.8]} 30. Ne4
{[%clk 0:01:12.3]} 30... Bd4 {[%clk 0:00:03.5]} 31. Rd2 {[%clk 0:01:10.3]} 31...
f6 {[%clk 0:00:03.4]} 32. Rxd4 {[%clk 0:01:09.3]} 32... f5 {[%clk 0:00:03.4]}
33. Be5+ {[%clk 0:01:06.2]} 33... Kh6 {[%clk 0:00:03.7]} 34. Nd6 {[%clk
0:01:01.5]} 34... Nxd6 {[%clk 0:00:03.7]} 35. Rxd6 {[%clk 0:01:01.8]} 35... Re8
{[%clk 0:00:04.2]} 36. f4 {[%clk 0:01:01.6]} 36... Rc8 {[%clk 0:00:03.5]} 37.
Rd1 {[%clk 0:00:56.7]} 37... Rc6 {[%clk 0:00:03.2]} 38. Bd5 {[%clk 0:00:54.6]}
38... Rc5 {[%clk 0:00:03.2]} 39. b4 {[%clk 0:00:54]} 39... Rc2 {[%clk
0:00:03.2]} 40. Bf3 {[%clk 0:00:52]} 40... Ra2 {[%clk 0:00:02.5]} 41. Bd6 {[%clk
0:00:51.6]} 41... Rb2 {[%clk 0:00:02.1]} 42. Bf8# {[%clk 0:00:50.5]} 1-0